Cogmind - Beta 13 @@@ ROGUE MODE // 2024.07.12 @ 00:09:41 Player: Selene Result: Destroyed by Y-54 Guardian with Gatling Laser Performance ------------- Evolutions (4) 2000 Regions Visited (10) 2000 Robots Destroyed (96) 480 Value Destroyed (2946) 2946 Prototype IDs (39) 780 Alien Tech Used (0) 0 Bonus (992) 992 TOTAL SCORE: 9198 Bonus ------- High Alert Combat Kills 99 Follower Combat Kills 642 Aligned with FarCom 300 Friendly Fire -49 Cogmind --------- Core Integrity 0/850 Matter 206/300 Energy 96/100 System Corruption 20% Temperature Cool (6) Movement Rolling (115) Ox1 Location -6/Factory Parts ------- > --- POWER (1) -------- (None) > --- PROPULSION (6) --- Armored Huge Wheel > --- UTILITY (6) ------ High-capacity Storage Unit Improved Signal Interpreter Advanced Signal Interpreter Hacking Suite > --- WEAPON (2) ------- (None) > --- INVENTORY (20) --- Improved Airjet Structural Scanner Machine Analyzer Visual Processing Unit Improved Sensor Array Improved Propulsion Shielding Supersonic Drone Bay (1/1) Heavy Ion Cannon Heavy Mass Driver Scatter Rocket Array Deploy-a-Sentry Peak State ------------ > --- POWER ------------ Light Angular Momentum Engine > --- PROPULSION ------- Gravmag Array Gravmag Array Gravmag Array > --- UTILITY ---------- Improved Heat Sink High-capacity Storage Unit Improved Light Armor Plating Hacking Suite Improved System Shield Supersonic Drone Bay > --- WEAPON ----------- AWS/Thermal > --- INVENTORY -------- Micro Nuclear Core Light Fission Core Aerolev Unit Aerolev Unit Aerolev Unit Aerolev Unit Aerolev Unit Gravmag System Improved Airjet Improved Gravmag System Structural Scanner Machine Analyzer Experimental Sensor Array Advanced Signal Interpreter Improved Light Armor Plating Heavy Rocket Launcher Precision Rocket Launcher Scatter Rocket Array Power Maul Deploy-a-Sentry [Rating: 83] Favorites ----------- Power Light Nuclear Core Engine Ion Engine Power Core Light Nuclear Core Reactor Light Antimatter Reactor Propulsion Light Treads Treads Light Treads Leg Armored Leg Wheel Wheel Hover Unit Gravmag Array Utility High-capacity Storage Unit Device Improved Heat Sink Storage High-capacity Storage Unit Processor Advanced Signal Interpreter Hackware Hacking Suite Protection Improved Light Armor Plating Weapon Plasma Cannon Energy Gun Medium Laser Energy Cannon Plasma Cannon Ballistic Gun Light Assault Rifle Ballistic Cannon Battle Cannon Launcher Grenade Launcher Impact Weapon Power Maul Slashing Weapon Chainsword Build | -11 -10 -10 -10 -9 -8 -8 -8 -6 -6 -6 ------- Run | Yrd Mat Min Exi Min Mat Sto Rec Fac Was Fac Slots Evolved 8 | . . . . . 4 . . 4 . . Power . | . . . . . . . . . . . Propulsion 4 | . . . . . 2 . . 2 . . Utility 4 | . . . . . 2 . . 2 . . Weapon . | . . . . . . . . . . . Parts Attached 155 | 7 20 7 3 4 17 21 . 47 4 25 Power 15 | 1 1 1 . . 3 . . 4 1 4 Engine 10 | 1 1 1 . . 2 . . 2 1 2 Core 3 | . . . . . 1 . . 1 . 1 Reactor 2 | . . . . . . . . 1 . 1 Propulsion 46 | 2 8 . . . 3 11 . 13 . 9 Treads 26 | 2 4 . . . 1 10 . 9 . . Leg 2 | . . . . . 1 . . 1 . . Wheel 6 | . 4 . . . 1 . . . . 1 Hover 12 | . . . . . . 1 . 3 . 8 Flight . | . . . . . . . . . . . Utility 51 | 2 4 . 3 2 7 4 . 23 1 5 Device 28 | 1 1 . 1 1 4 1 . 15 1 3 Storage 4 | 1 2 . 1 . . . . . . . Processor 4 | . . . . . . . . 3 . 1 Hackware 3 | . . . . . 1 . . 2 . . Protection 12 | . 1 . 1 1 2 3 . 3 . 1 Artifact . | . . . . . . . . . . . Weapon 43 | 2 7 6 . 2 4 6 . 7 2 7 Energy Gun 4 | . 2 1 . . . . . 1 . . Energy Cannon 9 | . . . . . 2 3 . 1 . 3 Ballistic Gun 12 | 2 3 3 . . . 1 . 3 . . Ballistic Cannon 1 | . . . . 1 . . . . . . Launcher 8 | . . 2 . 1 . . . 1 2 2 Special Weapon . | . . . . . . . . . . . Impact Weapon 8 | . 2 . . . 2 2 . 1 . 1 Slashing Weapon 1 | . . . . . . . . . . 1 Piercing Weapon . | . . . . . . . . . . . Special Melee Weapon . | . . . . . . . . . . . Unidentified Prototypes 5 | . . . 1 . 1 2 . . . 1 Parts Lost 30 | . 2 2 . . . . . 5 1 20 Power 8 | . 1 1 . . . . . 1 1 4 Propulsion 10 | . . . . . . . . . . 10 Utility 11 | . 1 . . . . . . 4 . 6 Weapon 1 | . . 1 . . . . . . . . Highest Loss Streak 7 | . 1 2 . . . . . 1 1 7 To Critical Strikes . | . . . . . . . . . . . Average Slot Usage (%) 94 | . 98 98 100 99 95 99 100 87 75 69 Engine 6 | . 14 12 14 14 5 . . 2 1 1 Core 3 | . . . . . 3 9 9 2 . 2 Treads 26 | . 21 28 28 28 26 34 36 26 . . Wheel 1 | . 6 . . . 4 1 . . . . Hover 2 | . . . . . . . . 4 20 18 Device 7 | . 4 . . 8 9 9 9 11 6 8 Storage 10 | . 14 14 14 14 9 9 9 6 6 6 Hackware 5 | . . . . . 8 9 9 11 13 9 Protection 8 | . 8 14 13 5 9 9 9 5 6 4 Energy Gun 4 | . 5 14 14 3 . . . 3 1 . Energy Cannon 5 | . . . . . 12 16 18 1 . 1 Ballistic Gun 6 | . 21 13 14 3 . . . 1 . . Launcher 1 | . . . . 10 1 . . . 6 . Naked Turns . | . . . . . . . . . . . Heaviest Build 74 | 14 52 52 47 50 74 70 63 74 72 65 Greatest Support 128 | 40 40 40 40 40 60 80 80 128 60 60 Greatest Overweight (x) 6 | . 2 1 1 1 6 5 . 1 1 1 Average Overweight (x) . | . 1 1 1 1 2 . . . . . Largest Inventory Capacity 20 | 8 20 20 20 20 20 20 20 20 20 20 Average Capacity 19 | 7 18 20 20 20 20 20 20 20 20 20 Most Carried 20 | 7 20 20 20 20 20 20 20 20 20 20 Average Carried 19 | 4 17 19 19 19 19 19 19 19 18 16 Final Capacity 20 | 8 20 20 20 20 20 20 20 20 20 20 Final Carried 20 | 7 20 20 20 20 20 20 20 19 17 12 Class Distribution -------------------- 59% | Mutant 22% | Scavenger-Mutant 7% | Hacker-Mutant 5% | Commander-Mutant 4% | Skirmisher Dominant Class ---------------- Mutant | -10/Materials Mutant | -10/Mines Mutant | -10/Exiles Skirmisher | -9/Mines Mutant | -8/Materials Mutant | -8/Storage Scavenger-Mutant | -8/Recycling Scavenger-Mutant | -6/Factory Hacker-Mutant | -6/Waste Mutant | -6/Factory Resources | -11 -10 -10 -10 -9 -8 -8 -8 -6 -6 -6 ----------- Run | Yrd Mat Min Exi Min Mat Sto Rec Fac Was Fac Matter Collected 2584 | 172 414 78 250 82 170 272 16 583 248 299 Remotely . | . . . . . . . . . . . Salvage Created 4679 | 128 507 49 . 7 241 797 415 1139 620 776 Parts 208 | 8 35 9 . . 11 38 21 52 6 28 Haulers Intercepted 6 | . 2 . . . 1 3 . . . . Recyclers Shooed 5 | . . 3 . . . . 1 . . 1 Parts Field Recycled . | . . . . . . . . . . . Retrieved Matter . | . . . . . . . . . . . Parts Self-Destructed . | . . . . . . . . . . . Prevented . | . . . . . . . . . . . Kills | -11 -10 -10 -10 -9 -8 -8 -8 -6 -6 -6 ------- Run | Yrd Mat Min Exi Min Mat Sto Rec Fac Was Fac Combat Hostiles Destroyed 69 | . 12 6 . 2 4 11 6 22 3 3 Melee 1 | . . . . . . . . . . 1 Guns 32 | . 12 . . . . . . 19 1 . Cannons 21 | . . . . . 4 11 6 . . . AOE 15 | . . 6 . 2 . . . 3 2 2 Classes Destroyed 16 | 2 5 1 . 1 . 1 3 1 1 1 Worker 5 | . . 1 . . . . . 3 . 1 Tunneler 2 | 2 . . . . . . . . . . Hauler 6 | . 2 . . . 1 3 . . . . Recycler 8 | 1 . . . . . . 2 . . 5 Mechanic 1 | . . . . . . . . . . 1 Operator 1 | . 1 . . . . . . . . . Watcher 6 | . 2 . . . . 2 . 1 . 1 Swarmer 20 | . 6 6 . . . . . 6 . 2 Grunt 26 | . 6 . . . 4 5 . 11 . . Brawler 1 | . . . . . . . 1 . . . Protector 1 | . . . . . . . 1 . . . Sentry 9 | . . . . . . 6 2 1 . . Hunter 1 | . . . . . . . . 1 . . Programmer 6 | . . . . . . . 2 3 . 1 Compactor 3 | . . . . . . . . . 3 . Assembled 2 | . . . . 2 . . . . . . Best Kill Streak 5 | 2 5 3 . 1 3 3 4 4 1 3 Combat Bots Only 5 | . 5 3 . 1 2 3 2 4 1 1 Max Kills in Single Turn 2 | 1 1 2 . 1 1 1 1 2 1 2 Gunslinging . | . . . . . . . . . . . Exploded 2 | . . 2 . 1 . . . 2 1 1 Melee 1 | . . . . . . . . . . 1 Uniques/NPCs Destroyed . | . . . . . . . . . . . Combat | -11 -10 -10 -10 -9 -8 -8 -8 -6 -6 -6 -------- Run | Yrd Mat Min Exi Min Mat Sto Rec Fac Was Fac Hostile Shots Fired 749 | . 82 19 . . 12 64 21 204 1 346 Missed 265 | . 16 5 . . 4 19 5 80 . 136 Damage Taken 6517 | . 693 199 . 58 123 686 246 1577 245 2690 Core 1039 | . 116 25 . 14 15 . 18 117 . 734 Absorbed by Shields 126 | . . . . . . . . 126 . . Redirected to Shielding 119 | . 12 3 . 2 . . . . . 102 Ignored by Resistances 3 | . . . . . . 3 . . . . Regen/Repaired (Parts) 118 | . 118 . . . . . . . . . Core Remaining (%) 77 | 100 . . . 38 . . 94 . . . Volleys Fired 228 | 5 76 13 . 4 10 59 17 30 10 4 Largest 2 | 2 2 2 . 1 2 2 2 2 2 1 Hottest 160 | 40 85 70 . 30 160 160 160 160 82 65 Shots Fired 532 | 10 152 20 . 4 20 118 33 136 36 3 Gun 316 | 10 152 14 . . . . . 124 16 . Cannon 182 | . . . . . 20 118 33 10 . 1 Launcher 34 | . . 6 . 4 . . . 2 20 2 Special . | . . . . . . . . . . . Kinetic 169 | 10 127 7 . . . . . 25 . . Thermal 329 | . 25 7 . . 20 118 33 109 16 1 Explosive 34 | . . 6 . 4 . . . 2 20 2 Electromagnetic . | . . . . . . . . . . . Robot Hit Streak 25 | 7 19 7 . . 23 8 6 11 25 2 Robot Miss Streak 7 | . 5 2 . . 1 5 3 4 1 7 Penetration Max . | . . . . . . . . . . . Secondary Targets 2 | . 2 . . . . . . . . . Max Gunslinging Chain 1 | . 1 . . . . . . . . . Autonomous 116 | . . . . . . . . 99 17 . Shots Hit Robots 334 | 7 88 10 . . 17 56 17 85 33 21 Core Hits 153 | 4 29 10 . 4 9 23 7 42 9 16 Critical Kills 1 | . 1 . . . . . . . . . Critical Parts Destroyed 1 | . . . . . . . . 1 . . Critical Strikes 5 | . 2 . . . . . . 1 . 2 Burn 1 | . 1 . . . . . . . . . Destroy 2 | . 1 . . . . . . 1 . . Sever 2 | . . . . . . . . . . 2 Melee Attacks 46 | . 4 . . . 3 14 . 1 . 24 Impact 22 | . 4 . . . 3 14 . 1 . . Slashing 24 | . . . . . . . . . . 24 Piercing . | . . . . . . . . . . . Sneak Attacks 7 | . . . . . . . . . . 7 Combat Hostiles . | . . . . . . . . . . . Follow-up Attacks . | . . . . . . . . . . . Damage Inflicted 11793 | 72 1051 289 . 92 428 1498 569 2765 3412 1617 Guns 4001 | 72 1051 99 . . . . . 2441 338 . Cannons 2572 | . . . . . 428 1498 569 51 . 26 Explosions 4264 | . . 190 . 92 . . . 271 3074 637 Melee 954 | . . . . . . . . . . 954 Ramming 2 | . . . . . . . . 2 . . Kinetic 1272 | 72 839 38 . . . . . 323 . . Thermal 5301 | . 212 61 . . 428 1498 569 2169 338 26 Explosive 4264 | . . 190 . 92 . . . 271 3074 637 Electromagnetic . | . . . . . . . . . . . Impact . | . . . . . . . . . . . Slashing 954 | . . . . . . . . . . 954 Piercing . | . . . . . . . . . . . Highest Corruption 20 | . . . . . . 2 5 2 16 20 Average Corruption 6 | . . . . . . 2 2 1 10 17 Corruption Purged 3 | . . . . . . . . 3 . . Corruption Blocked . | . . . . . . . . . . . Effects 69 | . . . . . . 3 18 11 5 32 Message Errors 12 | . . . . . . 1 5 1 1 4 Matter Fused 18 | . . . . . . 1 2 3 1 11 Heat Flow Errors 8 | . . . . . . . 1 2 2 3 Energy Discharges 8 | . . . . . . . 5 1 . 2 Parts Rejected 1 | . . . . . . . . . . 1 Parts Fused 2 | . . . . . . . 1 . . 1 Data Loss (minor) 11 | . . . . . . 1 3 3 . 4 Data Loss (major) 2 | . . . . . . . . 1 . 1 Alerts 1 | . . . . . . . . . . 1 Misdirections 4 | . . . . . . . . . 1 3 Weapon Failures 2 | . . . . . . . 1 . . 1 Overload Shots . | . . . . . . . . . . . Overflow Damage 279 | . . 18 . . 11 7 31 19 . 193 Projectiles 49 | . . . . . 11 7 31 . . . Explosions 52 | . . 18 . . . . . 19 . 15 Melee 178 | . . . . . . . . . . 178 Knockbacks . | . . . . . . . . . . . Impact . | . . . . . . . . . . . Kinetic . | . . . . . . . . . . . Secondary . | . . . . . . . . . . . Self-Inflicted Damage 441 | . . 84 . 60 . . . . 211 86 Shots 20 | . . 3 . 3 . . . . 9 5 Rammed . | . . . . . . . . . . . Targets Rammed 1 | . . . . . . . . 1 . . Kicked . | . . . . . . . . . . . Crushed 1 | . . . . . . . . 1 . . Highest Temperature 388 | . 388 40 . . 264 369 274 258 158 139 Average Temperature 109 | . 167 19 . . 102 106 103 77 88 49 Received Heat Transfer 1541 | . 261 . . . 90 243 18 503 . 426 Effects 6 | . . . . . 1 3 1 1 . . Shutdowns 1 | . . . . . . 1 . . . . Energy Bleed 4 | . . . . . 1 1 1 1 . . Matter Decay 1 | . . . . . . 1 . . . . Siege Activations . | . . . . . . . . . . . Robots Corrupted . | . . . . . . . . . . . Combat Hostiles . | . . . . . . . . . . . Parts Fried . | . . . . . . . . . . . Impact Corruptions . | . . . . . . . . . . . Robots Melted . | . . . . . . . . . . . Combat Hostiles . | . . . . . . . . . . . Parts Melted 22 | . 1 . . . 1 6 6 8 . . Heat Transferred 8761 | . 666 185 . . 850 2850 1002 2727 444 37 Parts Sabotaged . | . . . . . . . . . . . Parts Stolen . | . . . . . . . . . . . Parts Stripped . | . . . . . . . . . . . Power Chain Reactions . | . . . . . . . . . . . Alert | -11 -10 -10 -10 -9 -8 -8 -8 -6 -6 -6 ------- Run | Yrd Mat Min Exi Min Mat Sto Rec Fac Was Fac Peak Influence 562 | 15 275 111 . 11 122 426 281 562 293 438 Initial 364 | . 9 11 . . . 5 165 364 196 198 Average 159 | 5 73 60 . 6 13 176 176 330 244 260 Maximum Alert Level 2 | . 1 . . . . 2 1 2 1 2 Low Security (%) 62 | 100 93 100 . 100 100 63 73 5 21 15 Level 1 30 | . 6 . . . . 33 26 64 78 82 Level 2 6 | . . . . . . 3 . 29 . 1 Level 3 . | . . . . . . . . . . . Level 4 . | . . . . . . . . . . . Level 5 . | . . . . . . . . . . . High Security . | . . . . . . . . . . . Max Security . | . . . . . . . . . . . Squads Dispatched 21 | . 3 . . . 2 5 . 7 . 4 Investigation 10 | . 2 . . . 1 5 . 2 . . Extermination 4 | . . . . . . . . 3 . 1 Reinforcement 7 | . 1 . . . 1 . . 2 . 3 Assault . | . . . . . . . . . . . Garrison . | . . . . . . . . . . . Intercept . | . . . . . . . . . . . Searches Triggered 1 | . . . . . . . . 1 . . Construction Impeded . | . . . . . . . . . . . Haulers Reinforced . | . . . . . . . . . . . Active Scanning Responses . | . . . . . . . . . . . Cargo Convoy Interrupts . | . . . . . . . . . . . Stealth | -11 -10 -10 -10 -9 -8 -8 -8 -6 -6 -6 --------- Run | Yrd Mat Min Exi Min Mat Sto Rec Fac Was Fac Distress Signals 10 | . 1 . . 1 . 3 . 3 . 2 Communications Jammed . | . . . . . . . . . . . Distress Signals . | . . . . . . . . . . . Times Spotted 135 | . 21 6 . 2 8 25 7 37 5 24 Peak Tracking Total 9 | . 5 3 . 1 3 3 3 5 3 9 Tactical Retreats 12 | . 1 1 . . . 2 . 2 . 6 Traps | -11 -10 -10 -10 -9 -8 -8 -8 -6 -6 -6 ------- Run | Yrd Mat Min Exi Min Mat Sto Rec Fac Was Fac Traps Triggered 7 | . 1 . . . . 1 . 5 . . Indirectly . | . . . . . . . . . . . Trap Hack Attempts . | . . . . . . . . . . . Triggered . | . . . . . . . . . . . Disarmed . | . . . . . . . . . . . Reprogrammed . | . . . . . . . . . . . Reused . | . . . . . . . . . . . Traps Extracted . | . . . . . . . . . . . Installed . | . . . . . . . . . . . Triggered . | . . . . . . . . . . . Machines | -11 -10 -10 -10 -9 -8 -8 -8 -6 -6 -6 ---------- Run | Yrd Mat Min Exi Min Mat Sto Rec Fac Was Fac Machines Disabled 9 | . . 1 . . . 6 . 2 . . Max in Single Turn 1 | . . 1 . . . 1 . 1 . . Garrison Access 1 | . . . . . . 1 . . . . Machines Repaired . | . . . . . . . . . . . Machines Dismantled . | . . . . . . . . . . . Machines Sabotaged . | . . . . . . . . . . . Overloaded Fab Kills . | . . . . . . . . . . . Hacking | -11 -10 -10 -10 -9 -8 -8 -8 -6 -6 -6 --------- Run | Yrd Mat Min Exi Min Mat Sto Rec Fac Was Fac Machines Accessed 58 | . 10 . 2 1 5 14 14 8 . 4 Terminals 34 | . 7 . . . 5 11 6 3 . 2 Fabricators 3 | . . . . . . . . 2 . 1 Repair Stations 1 | . 1 . . . . . . . . . Recycling Units 13 | . 2 . . . . 2 8 1 . . Scanalyzers 1 | . . . . . . . . 1 . . Garrison Access 3 | . . . . . . 1 . 1 . 1 Total Hacks 154 | . 37 . 2 1 14 30 41 22 . 7 Successful 83 | . 21 . 2 1 6 17 27 7 . 2 Failed 69 | . 15 . . . 8 13 13 15 . 5 Catastrophic 8 | . 2 . . . . 3 . 3 . . Database Lockouts 2 | . 1 . . . . . 1 . . . Manual 55 | . 19 . 1 . 5 7 19 3 . 1 Terminals 109 | . 29 . . . 14 25 30 7 . 4 Fabricators 6 | . . . . . . . . 5 . 1 Repair Stations 4 | . 4 . . . . . . . . . Recycling Units 20 | . 4 . . . . 3 11 2 . . Scanalyzers 2 | . . . . . . . . 2 . . Garrison Access 10 | . . . . . . 2 . 6 . 2 Terminal Hacks 49 | . 14 . 2 1 4 11 14 1 . 2 Record 1 | . . . 1 . . . . . . . Part Schematic 5 | . . . . . . . 5 . . . Robot Analysis 5 | . 2 . . . 1 1 1 . . . Prototype ID Bank 6 | . 1 . . . 1 1 2 1 . . Open Door 2 | . . . . 1 . 1 . . . . Open DSF 1 | . . . . . . . . . . 1 Terminal Index 2 | . . . . . . 1 1 . . . Unreport Threat 4 | . 1 . . . . 1 2 . . . Locate Traps 7 | . 5 . . . . 2 . . . . Recall Reinforcements 1 | . . . . . . 1 . . . . Hauler Manifests 4 | . 1 . . . . 1 2 . . . Registered Components 2 | . 1 . . . . 1 . . . . Registered Prototypes 1 | . 1 . . . . . . . . . Zone Layout 7 | . 2 . . . 2 1 1 . . 1 Derelict Proto ID Bank 1 | . . . 1 . . . . . . . Fabricator Hacks 3 | . . . . . . . . 3 . . Network Status 1 | . . . . . . . . 1 . . Build 2 | . . . . . . . . 2 . . Repair Station Hacks 2 | . 2 . . . . . . . . . Scan Component 1 | . 1 . . . . . . . . . Repair 1 | . 1 . . . . . . . . . Recycling Unit Hacks 3 | . 1 . . . . 1 1 . . . Retrieve Components 3 | . 1 . . . . 1 1 . . . Scanalyzer 1 | . . . . . . . . 1 . . Insert Component 1 | . . . . . . . . 1 . . Garrison Access Hacks 1 | . . . . . . 1 . . . . Seal Access 1 | . . . . . . 1 . . . . Unauthorized Hacks 24 | . 4 . . . 2 4 12 2 . . Terminals 8 | . 2 . . . 2 2 2 . . . Botnet 8 | . 2 . . . 2 2 2 . . . Fabricators 1 | . . . . . . . . 1 . . Report 1 | . . . . . . . . 1 . . Repair Stations . | . . . . . . . . . . . Recycling Units 15 | . 2 . . . . 2 10 1 . . Reject 4 | . 1 . . . . . 3 . . . Tunnel 11 | . 1 . . . . 2 7 1 . . Scanalyzers . | . . . . . . . . . . . Garrison Access . | . . . . . . . . . . . Data Cores Recovered 1 | . 1 . . . . . . . . . Used . | . . . . . . . . . . . Hacking Detections 39 | . 8 . . . 5 10 6 6 . 4 Full Trace Events 4 | . . . . . 1 3 . . . . Feedback Events . | . . . . . . . . . . . Feedback Blocked . | . . . . . . . . . . . Robot Schematics Acquired . | . . . . . . . . . . . Robots Built . | . . . . . . . . . . . Authchips . | . . . . . . . . . . . Time . | . . . . . . . . . . . Total Robot Build Rating . | . . . . . . . . . . . Part Schematics Acquired 5 | . . . . . . . 5 . . . Parts Built 4 | . . . . . . . . 4 . . Authchips . | . . . . . . . . . . . Time 164 | . . . . . . . . 164 . . Total Part Build Rating 24 | . . . . . . . . 24 . . Parts Repaired 1 | . 1 . . . . . . . . . Time 26 | . 26 . . . . . . . . . Parts Recycled . | . . . . . . . . . . . Recycled Matter . | . . . . . . . . . . . Retrieved Matter . | . . . . . . . . . . . Retrieved Components 14 | . 3 . . . . 10 1 . . . Parts Scanalyzed . | . . . . . . . . . . . Part Schematics Acquired . | . . . . . . . . . . . Parts Damaged . | . . . . . . . . . . . Bothacking | -11 -10 -10 -10 -9 -8 -8 -8 -6 -6 -6 ------------ Run | Yrd Mat Min Exi Min Mat Sto Rec Fac Was Fac Used RIF Installer . | . . . . . . . . . . . Robots Hacked . | . . . . . . . . . . . Non-combat . | . . . . . . . . . . . Combat . | . . . . . . . . . . . Robot Hacks Applied . | . . . . . . . . . . . Relay Couplers Released . | . . . . . . . . . . . Fabnet Peak Effective % . | . . . . . . . . . . . Robots Rewired 7 | . . . . . . . 6 1 . . Allies Hacked 1 | . . . . . . . . 1 . . Hacks Repelled . | . . . . . . . . . . . Allies | -11 -10 -10 -10 -9 -8 -8 -8 -6 -6 -6 -------- Run | Yrd Mat Min Exi Min Mat Sto Rec Fac Was Fac Total Allies 9 | . . . . . . 2 6 1 . . Largest Group 6 | . . . . . . 2 6 6 . . Highest-Rated Group 116 | . . . . . . 116 116 94 . . Highest-Rated Ally 100 | . . . . . . 100 100 27 . . Total Orders 6 | . . . . . . . 1 5 . . TUNNEL 1 | . . . . . . . 1 . . . EXPLORE 5 | . . . . . . . . 5 . . Ally Attacks 57 | . . . . . . 29 2 26 . . Total Damage 2123 | . . . . . . 1117 28 978 . . Kills 18 | . . . . . . 12 . 6 . . Allies Corrupted . | . . . . . . . . . . . Allies Melted . | . . . . . . . . . . . Turrets Deployed 2 | . . . . . . 1 . 1 . . Intel | -11 -10 -10 -10 -9 -8 -8 -8 -6 -6 -6 ------- Run | Yrd Mat Min Exi Min Mat Sto Rec Fac Was Fac Robot Analysis Total 5 | . 2 . . . 1 1 1 . . . Derelict Logs Recovered 3 | . . 1 . 2 . . . . . . Drone Launches 5 | . . . . . . . . 5 . . Drone Recoveries 2 | . . . . . . . . 2 . . Exploration | -11 -10 -10 -10 -9 -8 -8 -8 -6 -6 -6 ------------- Run | Yrd Mat Min Exi Min Mat Sto Rec Fac Was Fac Turns Passed 9854 | 158 1578 774 763 803 593 1556 943 1906 190 590 Spaces Moved 5158 | 81 722 303 313 320 279 735 457 1178 155 615 Core 17 | 17 . . . . . . . . . . Treads 3413 | 64 455 303 313 320 131 622 457 748 . . Legs . | . . . . . . . . . . . Wheels 584 | . 267 . . . 148 113 . . . 56 Hover 1144 | . . . . . . . . 430 155 559 Flight . | . . . . . . . . . . . Fastest Speed 43 | 50 105 240 240 240 160 160 165 102 52 43 Average Speed 162 | 136 171 240 240 240 179 166 165 142 97 75 Slowest Speed 246 | 160 240 240 240 240 240 246 165 240 102 115 Overloaded Moves . | . . . . . . . . . . . Propulsion Burnouts . | . . . . . . . . . . . Robots Hopped . | . . . . . . . . . . . Cave-ins Triggered . | . . . . . . . . . . . Exploration Rate (%) 59 | 7 93 64 70 78 27 93 89 28 77 30 Regions Visited 10 Branch Regions 5 Pre-discovered Areas 12 | . 1 . 1 . . 2 7 1 . . Known Exits Taken 1 | . . . . . 1 . . . . . Unknown Exits Taken 7 | 1 1 1 1 1 . 1 1 . . . Scrap Searched 5 | . . 2 . 3 . . . . . . Spaces Dug 51 | . 3 11 . 11 3 5 . 15 . 3 Terrain Destroyed 325 | . 3 28 . 23 5 38 11 46 135 36 Melee 13 | . 3 . . . 3 3 . 1 . 3 Projectile 73 | . . . . . 2 35 11 21 4 . AOE 239 | . . 28 . 23 . . . 24 131 33 Terrain Rammed . | . . . . . . . . . . . Walls Destroyed . | . . . . . . . . . . . Machines Disabled . | . . . . . . . . . . . Actions | -11 -10 -10 -10 -9 -8 -8 -8 -6 -6 -6 --------- Run | Yrd Mat Min Exi Min Mat Sto Rec Fac Was Fac Total 6180 | 116 915 331 329 352 351 934 613 1370 174 695 Wait 283 | 17 52 5 1 18 20 64 49 47 . 10 Move 5149 | 80 721 302 312 319 278 734 456 1178 154 615 Hop . | . . . . . . . . . . . Pick Up 91 | 7 24 2 5 2 8 13 1 21 2 6 Fast Attach 55 | 7 2 1 . 2 6 6 . 19 . 12 Attach 30 | . 2 1 1 . 3 . . 10 3 10 Detach 7 | . 1 . 1 . 1 . . 2 . 2 Swap 70 | . 16 5 2 2 8 15 . 18 1 3 Drop 123 | . 17 2 7 5 14 29 1 35 4 9 Fire 228 | 5 76 13 . 4 10 59 17 30 10 4 Melee 46 | . 4 . . . 3 14 . 1 . 24 Ram . | . . . . . . . . . . . Kick . | . . . . . . . . . . . Crush 1 | . . . . . . . . 1 . . Escape Stasis . | . . . . . . . . . . . Rewire 97 | . . . . . . . 89 8 . . Trap . | . . . . . . . . . . . Miscellaneous . | . . . . . . . . . . . Route ------- -11/Scrapyard -10/Materials (discovered 5 exits: [*Mat x3] / [*Min] / [*Sub]) -10/Mines (discovered 2 exits: [*Mat] / *Exi) -10/Exiles -9/Mines -8/Materials (discovered 2 exits: [*Fac] / *Sto) -8/Storage (discovered 2 exits: [*Fac] / *Rec) -8/Recycling -6/Factory (discovered 2 exits: *Fac / *Low) -6/Waste -6/Factory (discovered 2 exits: *Fac x2) History --------- Turn | Location | Event 10 | -11/Scrapyard | Discovered new exit (range 14) 159 | -11/Scrapyard | Entered Materials 307 | -10/Materials | Build established: Mutant 526 | -10/Materials | Discovered new exit (range 6) 598 | -10/Materials | Discovered new exit (range 16) 722 | -10/Materials | Discovered new exit (range 11) 970 | -10/Materials | Discovered new exit (range 7) 1062 | -10/Materials | Discovered new exit (range 16) 1271 | -10/Materials | Repaired Lgt. Treads 1589 | -10/Materials | Central database locked down 1737 | -10/Materials | Entered Mines 1836 | -10/Mines | Found a damaged Exp. Sensor Array with a note attached 1841 | -10/Mines | Found Prototype Device 1907 | -10/Mines | Learned Materials emergency access door positions 1956 | -10/Mines | Core integrity fell below 50% 2411 | -10/Mines | Received a Rocket Launcher from a helpful Derelict 2420 | -10/Mines | Discovered new exit (range 2) 2502 | -10/Mines | Deemed a non-threat by the Exiles lab entrance 2502 | -10/Mines | Discovered new exit (range 5) 2511 | -10/Mines | Entered Exiles 2571 | -10/Exiles | Met 8R-AWN 2610 | -10/Exiles | Met EX-HEX 2741 | -10/Exiles | Met EX-DEC 2794 | -10/Exiles | Learned location of Zion (-6) 2832 | -10/Exiles | Met EX-BIN 2866 | -10/Exiles | Aligned with FarCom system 2868 | -10/Exiles | Given EX-Vault access code 2923 | -10/Exiles | Opened EX-Vault 2937 | -10/Exiles | Found Deploy-a-Sentry 2940 | -10/Exiles | Found Deploy-a-Sentry 2944 | -10/Exiles | Found Deploy-a-Sentry 2948 | -10/Exiles | Identified Exp. Sensor Array 2954 | -10/Exiles | Found Supersonic Drone Bay 2968 | -10/Exiles | Found AWS/Thermal 3017 | -10/Exiles | Warned to stay clear of 0b10 Research branches 3247 | -10/Exiles | Discovered new exit (range 14) 3274 | -10/Exiles | Stole three prototypes: Supersonic Drone Bay, AWS/Thermal, Deploy-a-Sentry 3274 | -10/Exiles | Entered Mines 3322 | -9/Mines | Learned location of 1 exit from Proximity Caves 3326 | -9/Mines | Found the Drone Emporium 3350 | -9/Mines | Found Prototype Device 3363 | -9/Mines | Assembled infested the area 3481 | -9/Mines | A weapon hastily lodged in a ceiling crevice suddenly fell to the ground 3919 | -9/Mines | Build established: Skirmisher 4065 | -9/Mines | Discovered new exit (range 6) 4077 | -9/Mines | Entered Materials 4077 | -8/Materials | Evolved 4 slots: Propulsion x2, Utility x2 4077 | -8/Materials | Identified Decoy Drone Bay 4078 | -8/Materials | Identified exit to Storage 4281 | -8/Materials | Discovered new exit (range 9) 4409 | -8/Materials | Build established: Mutant 4670 | -8/Materials | Entered Storage 5080 | -8/Storage | Build established: Scavenger-Mutant 5505 | -8/Storage | DAS Turret deployed 5564 | -8/Storage | Met 01-MTF 5567 | -8/Storage | Build established: Mutant 5970 | -8/Storage | Discovered new exit (range 16) 6214 | -8/Storage | Discovered new exit (range 3) 6226 | -8/Storage | Entered Recycling 6226 | -8/Recycling | Accompanied by 2 allies (01-MTF) 6231 | -8/Recycling | 01-MTF left 6500 | -8/Recycling | Build established: Scavenger-Mutant 7113 | -8/Recycling | Discovered new exit (range 6) 7169 | -8/Recycling | Entered Factory 7169 | -6/Factory | Accompanied by 5 allies 7169 | -6/Factory | Evolved 4 slots: Propulsion x2, Utility x2 7171 | -6/Factory | FarCom data flow suspended 7349 | -6/Factory | Build established: Commander-Mutant 7503 | -6/Factory | Lost 3 allies 7510 | -6/Factory | DAS Turret deployed 7519 | -6/Factory | Search patrols dispatched 7933 | -6/Factory | Build established: Scavenger-Mutant 8392 | -6/Factory | Found Prototype Launcher 8461 | -6/Factory | Discovered new exit (range 15) 8659 | -6/Factory | Discovered new exit (range 31) 8731 | -6/Factory | Identified exit to Factory 8784 | -6/Factory | Fabricated Lgt. Antimatter Reactor (x2) 8930 | -6/Factory | Fabricated Adv. Signal Interpreter (x2) 8987 | -6/Factory | Identified exit to Lower Caves 9075 | -6/Factory | Sucked down chute 9075 | -6/Factory | Entered Waste 9085 | -6/Waste | Spotted C-40 Crusher 9090 | -6/Waste | EMP discharged 9103 | -6/Waste | Destroyed C-40 Crusher 9108 | -6/Waste | Spotted C-40 Crusher 9123 | -6/Waste | Spotted C-40 Crusher 9128 | -6/Waste | Spotted C-40 Crusher 9164 | -6/Waste | Destroyed C-40 Crusher 9190 | -6/Waste | EMP discharged 9190 | -6/Waste | System corruption reached 10% 9202 | -6/Waste | Spotted C-40 Crusher 9205 | -6/Waste | Destroyed C-40 Crusher 9215 | -6/Waste | Crushed by Compactor (1 part destroyed, 1 dropped) 9250 | -6/Waste | Discovered new exit (range 16) 9264 | -6/Waste | Identified exit to Factory 9265 | -6/Waste | Entered Factory 9316 | -6/Factory | Identified exit to DSF 9331 | -6/Factory | Build established: Hacker-Mutant 9356 | -6/Factory | Discovered exit to Factory (range 12) 9514 | -6/Factory | Discovered exit to Factory (range 12) 9533 | -6/Factory | Identified Scatter Rocket Array 9640 | -6/Factory | Lost 6 parts (2p2n2u) 9662 | -6/Factory | Core integrity fell below 50% 9714 | -6/Factory | Lost 4 parts (1p3n) 9802 | -6/Factory | Core integrity fell below 20% 9828 | -6/Factory | Lost 7 parts (1p4n2u) 9836 | -6/Factory | Build established: Mutant 9855 | -6/Factory | Destroyed by Y-54 Guardian with Gatling Laser Last Messages --------------- 09789_ U-05 Engineer lays Concrete. 09790_ Imp. Hover Unit destroyed. 09790_ U-05 Engineer lays Concrete. 09791_ U-05 Engineer builds a Wall. 09791_ K-01 Serf destroyed. 09791_ U-05 Engineer lays Concrete. 09793_ The unstable cave ceiling collapses. 09794_ U-05 Engineer lays Concrete. 09796_ Acquired Imp. Signal Interpreter. 09796_ U-05 Engineer builds a Wall. 09797_ Imp. Utility Shielding destroyed. 09800_ System corrupted: Component data lost. 09800_ U-05 Engineer lays Concrete. 09803_ R-10 Processor collects Wheel. 09813_ K-01 Serf cleans the Fusion Modulator. 09835_ System corrupted: Chainsword rejected. 09835_ Recalibrator destroyed. 09843_ Fusion Modulator explodes. 09843_ Terminal disabled. 09843_ Fusion Modulator explodes. Map ----- +----------------------------------------------------+ | ?????????????????????????????????????????????????? | | ?????????????????????????????????????????????????? | | ?????????????????????????????????????????????????? | | ?????????????????????????????????????????????????? | | ?????????????????????????????????????????????????? | | ?????????????????????????????????????????????????? | | ?????????????????????????????????????????????????? | | ?????????????????????????????????????????????????? | | ?????????????????????????????????????????????????? | | ?????????????????????????????????????????????????? | | ??????????????????????? ;???????????????????????? | | ??????????????????? ???????????????????????? | | ?????????????????? ;#??????????????????????? | | ??????????????? #? ????????????????????? | | ???????????? # ?????????????????????? | | ???????????"" # "????????????????????? | | ??????????? ;;?"????????????????????? | | ??????????" ;; ?????????????????????? | | ??????????" ;# ?????????????????????? | | ???????????# ;??????????????????????? | | ???????????# #??????????????????????? | | ???????????# #??????????????????????? | | ???????????#; ;##########+##??????????? | | ???????????#; #??????????? | | ???########## ; ????????????? | | ???? # @ """ """ ????????????? | | ???? # ; """ """ #??????????? | | ???? # ; """ """ #??????????? | | ??? # # #??????????? | | ?? """ """ # ;;# #??????????? | | ? """ """ # Y # # #??????????? | | ! """ """ # # """ # #??????????? | | + Y """ # ""T"" #??????????? | | """ """ # # """ # """"" #??????????? | | """ """ # # # ????????????? | | """ """ # # """ ############ ???????????? | | # # "?" #???????????????????????? | | ########/#### # "?" #???????????????????????? | | + ?? #???????????????????????? | | # """ #???????????????????????? | | " + """ #???????????????????????? | | " # """ #???????????????????????? | | " # #???????????????????????? | | ########### ### ##??????????????????????? | | " ]###########+# # #######????????????????? | | " # # #????????????????? | | " + #????????????????? | | # #????????????????? | | " # """ #????????????????? | | " # """ #????????????????? | +----------------------------------------------------+ Best States ------------- Heat Dissipation 64 Coolant Potential 50 Energy Generation 21 Energy Capacity 310 Matter Stores 300 Matter Capacity 300 Sight Range 16 Robot Scan Range 20 Terrain Scan Density 10 Armor Coverage 150 Resistance: KI 20 Core Shielding 20 Utility Shielding 66 Evasion (%) 56 Recoil Reduction 6 Offensive Hacking 20 Defensive Hacking 12 Item Schematics ----------------- Hvy. Particle Cannon | -8/Recycling | Hacked Adv. Terrain Scanner | -8/Recycling | Hacked Melee Analysis Suite | -8/Recycling | Hacked Lightning Gun | -8/Recycling | Hacked Imp. Titanium Leg | -8/Recycling | Hacked Robot Schematics ------------------ None Fabricated ------------ Lgt. Antimatter Reactor | x2 | -6/Factory | Preloaded Adv. Signal Interpreter | x2 | -6/Factory | Preloaded Alien Tech Used ----------------- None Achievements -------------- None Challenges ------------ None Game ------ Seed TerrabombCompactClaymores Manual? 0 Play Time 01:24:50 Cumulative 103.5 hours Start 2024.07.11 @ 22:44:52 End 2024.07.12 @ 00:09:41 Sessions 1 Manual Loads 0 Difficulty Rogue Special Mode None Game No. 63 Rogue 60 Adventurer 3 Explorer 0 Win Type - Total 2 Types 2/0/0/0/0/0/0/0/0 Lore% 55 Gallery% 59 Achievement% 48 Wizard Run 0 Options --------- Layout 1 ASCII 0 Keyboard 1 Movement Vi Keybinds 1 Fullscreen 2 Font 24/Smallcaps Map View 50x35 Zoom Use 0% Tactical HUD 1 Map Filters NONE Filters NONE Steam 1 RUN: ac1a36b6-21b9-4fe5-a2b0-6328a045c309